fUSD/lending_fUSD_20240324
["ID","MTS","AMOUNT","RATE_DAILY","PERIOD"]
[320354535,1711320639010,-151.032507,0.00018428,2]
[320354536,1711320639020,-151.032507,0.00018428,2]
[320354538,1711320639029,-151.032507,0.00018428,2]
[320354540,1711320639038,-151.032507,0.00018428,2]
[320354542,1711320639047,-151.032507,0.00018428,2]
[320354544,1711320639056,-151.032507,0.00018428,2]
[320354545,1711320639065,-151.032507,0.00018428,2]
[320354547,1711320639075,-151.032507,0.00018428,2]
[320354548,1711320639344,-151.032507,0.00018428,3]
[320354549,1711320639355,-151.032507,0.00018428,3]
[320354550,1711320639365,-151.032507,0.00018428,3]
[320354551,1711320639376,-151.032507,0.00018428,3]
[320354552,1711320639386,-151.032507,0.00018428,3]
[320354553,1711320639396,-151.032507,0.00018428,3]
[320354554,1711320639407,-151.032507,0.00018428,3]
[320354555,1711320639417,-151.032507,0.00018428,3]
[320354556,1711320639427,-151.032507,0.00018428,3]
[320354557,1711320639435,-151.032507,0.00018428,3]
[320354558,1711320639446,-58781.43163319,0.00018429,2]
[320354559,1711320639470,-1011.03399856,0.00018429,2]
[320354560,1711320639483,-2599.62882889,0.00018429,2]
[320354561,1711320639593,-844.46549502,0.00018429,2]
[320354562,1711320639605,-418.26207457,0.00018429,2]
[320354563,1711320639712,-34521.336,0.00018429,2]
[320354564,1711320639750,-334.83906005,0.00018429,2]
[320354565,1711320639763,-10595.29370391,0.00018429,2]
[320354566,1711320640316,-679.06343594,0.00018429,2]
[320354567,1711320640329,-241630.034115,0.00018429,2]
[320354568,1711320640354,-8124.71004798,0.00018429,2]
[320354569,1711320640368,-396.08374714,0.00018429,2]
[320354570,1711320640394,-301.34,0.00018429,2]
[320354571,1711320640407,-2586.26677446,0.00018429,2]
[320354572,1711320640420,-515.35909552,0.00018429,2]
[320354573,1711320640434,-318023.74270801,0.00018429,2]
[320354574,1711320640445,-25208.8368,0.0001843,2]
[320354575,1711320640455,-59856.8316,0.0001843,2]
[320354576,1711320640465,-645.6907271,0.00018456,2]
[320354577,1711320640477,-645.6907271,0.00018487,2]
[320354578,1711320640498,-175.32,0.00018492,2]
[320354579,1711320640521,-1500.0,0.000185,6]
[320354580,1711320640544,-645.6907271,0.00018519,2]
[320354581,1711320640567,-154.97363183,0.00018522,2]
[320354582,1711320640590,-1309.58877861,0.00018533,2]
[320354583,1711320640608,-645.6907271,0.0001855,2]
[320354584,1711320640624,-1502.60848682,0.00018554,2]
[320354585,1711320640643,-645.6907271,0.00018582,2]
[320354586,1711320640662,-152.11310391,0.0001859,2]
[320354587,1711320640673,-2300.0,0.000186,6]
[320354588,1711320640684,-645.6907271,0.00018613,2]
[320354589,1711320640695,-152.08525187,0.00018617,2]
[320354590,1711320640705,-152.11310391,0.00018638,2]
[320354591,1711320640716,-645.6907271,0.00018645,2]
[320354592,1711320640730,-474.66194179,0.00018666,2]
[320354593,1711320640743,-154.8170796,0.00018668,2]
[320354595,1711320640755,-645.6907271,0.00018676,2]
[320354597,1711320640766,-154.62110221,0.00018677,2]
[320354598,1711320640777,-152.11310391,0.00018681,2]
[320354600,1711320640790,-157.74055767,0.00018683,2]
[320354602,1711320640802,-151.06956234,0.00018683,2]
[320354604,1711320640814,-269.84193871,0.00018697,2]
[320354606,1711320640825,-1975.407,0.00018699,2]
[320354607,1711320640836,-432.0,0.00018699,2]
[320354609,1711320640847,-1266.0,0.00018699,2]
[320354611,1711320640858,-216.465,0.00018699,2]
[320354612,1711320640868,-425.657,0.00018699,2]
[320354614,1711320640883,-2957.0,0.00018699,2]
[320354616,1711320640894,-1143.597,0.00018699,2]
[320354618,1711320640906,-1464.595,0.00018699,2]
[320354620,1711320640917,-202.103,0.00018699,2]
[320354621,1711320640927,-1625.0,0.00018699,2]
[320354623,1711320640938,-2422.0,0.00018699,2]
[320354625,1711320640949,-227.526,0.00018699,2]
[320354627,1711320640959,-221.0,0.00018699,2]
[320354629,1711320640971,-4764.0,0.00018699,2]
[320354631,1711320640984,-5676.0,0.00018699,2]
[320354633,1711320640993,-4884.983,0.00018699,2]
[320354635,1711320641003,-2443.0,0.00018699,2]
[320354637,1711320641012,-150.0,0.00018699,2]
[320354639,1711320641022,-907.0,0.000187,2]
[320354640,1711320641031,-3100.0,0.000187,6]
[320354642,1711320641041,-645.6907271,0.00018708,2]
[320354644,1711320641050,-166.01761834,0.0001873,2]
[320354646,1711320641059,-645.6907271,0.00018739,2]
[320354648,1711320641069,-154.62110221,0.0001877,2]
[320354650,1711320641078,-645.6907271,0.00018771,2]
[320354652,1711320641087,-1502.60848682,0.00018779,2]
[320354654,1711320641096,-3900.0,0.000188,6]
[320354655,1711320641106,-166.64686583,0.00018809,2]
[320354657,1711320641114,-154.62110221,0.00018812,2]
[320354659,1711320641124,-154.3652704,0.00018823,2]
[320354661,1711320641134,-474.66194179,0.00018835,2]
[320354663,1711320641143,-449.94333018,0.00018846,2]
[320354665,1711320641152,-474.66194179,0.00018877,2]
[320354667,1711320641161,-1309.58877861,0.00018878,2]
[320354669,1711320641171,-157.74055767,0.00018883,2]
[320354671,1711320641179,-216.31949848,0.00018885,2]
[320354672,1711320641189,-378.73236996,0.00018885,2]
[320354674,1711320641200,-786.77669859,0.00018885,2]
[320354676,1711320641216,-11385.32847842,0.00018885,2]
[320354678,1711320641228,-154.04454229,0.00018885,2]
[320354680,1711320641237,-331.29534862,0.00018885,2]
[320354682,1711320641246,-700.0,0.000189,6]
[320354683,1711320641255,-166.01761834,0.00018906,2]
[320354685,1711320641265,-449.94333018,0.00018932,2]
[320354687,1711320641274,-152.11310391,0.00018938,2]
[320354689,1711320641284,-856.0,0.00018946,2]
[320354691,1711320641294,-152.11310391,0.00018948,2]
[320354693,1711320641303,-152.84284734,0.00018959,2]
[320354694,1711320641314,-160.31925378,0.00018966,2]
[320354696,1711320641323,-151.032507,0.00018976,3]
[320354698,1711320641333,-151.032507,0.00018976,3]
[320354700,1711320641343,-151.032507,0.00018976,3]
[320354702,1711320641352,-151.032507,0.00018976,3]
[320354704,1711320641362,-151.032507,0.00018976,3]
[320354706,1711320641372,-151.032507,0.00018977,3]
[320354707,1711320641383,-151.032507,0.00018977,3]
[320354709,1711320641392,-151.032507,0.00018977,3]
[320354711,1711320641401,-151.032507,0.00018977,3]
[320354713,1711320641410,-151.032507,0.00018977,3]
[320354715,1711320641419,-151.032507,0.00018977,2]
[320354717,1711320641428,-151.032507,0.00018977,2]
[320354719,1711320641438,-151.032507,0.00018977,2]
[320354721,1711320641447,-151.032507,0.00018977,2]
[320354723,1711320641457,-151.032507,0.00018977,2]
[320354724,1711320641466,-17715.40741584,0.00018977,7]
[320354726,1711320641479,-154.62110221,0.00018978,2]
[320354728,1711320641489,-466790.26851797,0.00018978,2]
[320354731,1711320641507,-1903.77658792,0.00018978,2]
[320354733,1711320641519,-300.0,0.00018978,2]
[320354737,1711320641544,-3743.64597943,0.00018978,2]
[320354815,1711320643220,-6696.2,0.00018978,2]
[320354816,1711320643234,-1237927.8787061,0.00018978,2]
[320354817,1711320643245,-2040.75,0.00018978,2]
[320354818,1711320643257,-977.79543901,0.00018978,2]
[320354819,1711320643441,-333.07689778,0.00018978,2]
[320354826,1711320646315,-645.6907271,0.00018802,2]
[320354827,1711320646325,-9961.61912246,0.00018978,2]
[320354828,1711320646336,-1413.45122874,0.00018978,2]
[320354829,1711320647043,-500.0,0.00018977,2]
[320354830,1711320647147,-407.37990228,0.00018977,2]
[320354831,1711320647158,-428.6820337,0.00018978,2]
[320354833,1711321155836,502.95303386,0.000199,120]
[320354834,1711321209962,-584.92,0.0001575,2]
[320354835,1711321209986,-512.4299,0.0001625,2]
[320354836,1711321210009,-1230.2,0.00017284,2]
[320354837,1711321210032,-486.4,0.00017354,2]
[320354838,1711321210058,-357.12,0.00017636,2]
[320354839,1711321210080,-158.03430554,0.0001769,2]
[320354840,1711321210103,-2009.8928,0.000177,2]
[320354841,1711321210125,-250.0,0.00017708,2]
[320354842,1711321210148,-254.68,0.0001779,3]
[320354843,1711321210171,-764.06,0.0001779,3]
[320354844,1711321210193,-169.78,0.0001779,3]
[320354845,1711321210215,-509.38,0.0001779,3]
[320354846,1711321210238,-499.999999,0.0001779,2]
[320354847,1711321210261,-17213.10299546,0.000178,2]
[320354848,1711321245123,-906153.00486661,0.000179,5]
[320354849,1711321245146,-372.18809735,0.00017999,5]
[320354890,1711321831414,-584.92,0.00015373,2]
[320354891,1711321831423,-1153.0426082,0.00017226,2]
[320354892,1711321831435,-77.1573918,0.00017226,2]
[320354893,1711321831445,-610.88,0.00017263,2]
[320354894,1711321831454,-165.89,0.0001732,2]
[320354895,1711321831463,-358.14,0.00017397,2]
[320354896,1711321831474,-250.0,0.00017452,2]
[320354897,1711321831483,-556.8426082,0.00017637,2]
[320354898,1711321831656,-28.0773918,0.00017637,2]
[320354899,1711321831667,-512.4299,0.000177,2]
[320354900,1711321831678,-238.35888578,0.00017798,2]
[320354901,1711321831688,-155.0,0.00017798,2]
[320354902,1711321831699,-1.19783514,0.00017799,2]
[320354903,1711321831712,-473.53534172,0.00017799,2]
[320354904,1711321831721,-178.62616033,0.00017799,2]
[320354905,1711321831735,-1705.61524315,0.00017799,2]
[320354906,1711321831746,-7290.86594842,0.000178,2]
[320354907,1711321831791,-651.83828358,0.000178,2]
[320354909,1711321831827,-7193.71463159,0.000178,2]
[320354911,1711321837365,-275.103,0.000178,2]
[320354912,1711321837425,-656.36227831,0.000178,2]
[320354913,1711321837437,-6921.3594581,0.000178,2]
[320354914,1711321837446,-959.16186332,0.000178,2]
[320354915,1711321837456,-166.94,0.00017805,2]
[320354916,1711321837465,-10269.23600306,0.000179,2]
[320354917,1711321837475,-1000.45406999,0.000179,2]
[320354918,1711321837484,-2009.8928,0.000179,2]
[320354919,1711321837494,-1708.4073,0.000179,2]
[320354920,1711321837504,-231.10452462,0.000179,2]
[320354921,1711321837513,-607.34291042,0.000179,2]
[320354922,1711321837523,-2582.7629084,0.000179,2]
[320354923,1711321837534,-316.10161972,0.000179,2]
[320354924,1711321837544,-23021.9598786,0.0001798,2]
[320354925,1711321837554,-959.16186331,0.00017983,2]
[320354926,1711321837563,-424.47,0.0001799,3]
[320354927,1711321837573,-212.23,0.0001799,3]
[320354928,1711321837582,-636.72,0.0001799,3]
[320354929,1711321837591,-2524.2,0.00017998,2]
[320354930,1711321837601,-42373.08095434,0.00017999,2]
[320354931,1711321837610,-372.18809735,0.00017999,5]
[320354932,1711321837620,-11220.57773937,0.00017999,2]
[320354933,1711321837633,-3683.954,0.00018,2]
[320354934,1711321837645,-766557.20475029,0.00018,2]
[320354935,1711321837671,-2072.43069933,0.00018,2]
[320354936,1711321837682,-338.93229796,0.00018,2]
[320354937,1711321837728,-59432.26234527,0.00018,2]
[320354938,1711321837740,-20092.792,0.00018,2]
[320355009,1711321839636,-5495.70308544,0.00018,2]
[320355012,1711321839648,-577.17808764,0.00018,2]
[320355016,1711321839678,-80047.301565,0.00018,2]
[320355019,1711321839696,-908.8344587,0.00018,2]
[320355021,1711321839708,-1729.64712945,0.00018,2]
[320355134,1711321843045,-238.42,0.00017515,2]
[320355135,1711321843055,-798.01956029,0.000179,2]
[320355136,1711321843067,-6792.19942531,0.000179,2]
[320355137,1711321843076,-2634.34006411,0.00018,2]
[320355138,1711321843089,-523.98670559,0.00018,2]
[320355139,1711321843101,-3663.59527761,0.00018,2]
[320355145,1711321843432,-250.0,0.00017696,2]
[320355146,1711321843442,-3579.71924848,0.00018,2]
[320355147,1711321843459,-4245.98498518,0.00018,2]
[320355148,1711321843471,-520.05835513,0.00018,2]
[320355150,1711321843515,-518.20487835,0.00018,2]
[320355152,1711321843527,-647.75,0.00018,2]
[320355154,1711321843541,-834.03,0.00018,2]
[320355157,1711321843559,-475.67259041,0.00018,2]
[320355464,1711321846829,-1704.7805,0.000179,2]
[320355466,1711321846839,-651.649,0.00017999,2]
[320355468,1711321846848,-11244.15643879,0.00018,2]
[320355486,1711321847005,-645.52545384,0.00018,2]
[320355489,1711321847016,-261.10845096,0.00018,2]
[320355630,1711322145131,160.0,0.00024842,30]
[320355631,1711322353847,174.0,0.0002485,120]
[320355632,1711322603066,1500.0,0.00016894,4]
[320355659,1711323031562,-474.7803758,0.00014358,2]
[320355660,1711323031574,-579.23336662,0.00014358,2]
[320355661,1711323031584,-155.0,0.00014359,2]
[320355662,1711323031596,-214.69761119,0.00014359,2]
[320355663,1711323031605,-165.09636315,0.0001436,2]
[320355664,1711323031614,-157.18543557,0.00014366,2]
[320355665,1711323031623,-526.42,0.00014466,2]
[320355666,1711323031632,-150.0,0.000162,2]
[320355667,1711323031643,-150.0,0.000162,2]
[320355668,1711323031652,-145.87230742,0.000162,2]
[320355669,1711323031664,-4.12769258,0.000162,2]
[320355670,1711323031675,-150.0,0.000162,2]
[320355671,1711323031684,-150.0,0.000162,2]
[320355672,1711323031693,-150.0,0.000162,2]
[320355673,1711323031702,-1093.0,0.00016286,2]
[320355674,1711323031712,-150.0,0.000163,2]
[320355675,1711323031721,-250.0,0.00016327,2]
[320355676,1711323031730,-150.0,0.000164,2]
[320355677,1711323031739,-150.0,0.000164,2]
[320355678,1711323031748,-200.0,0.00016438,2]
[320355679,1711323031757,-150.0,0.00016457,2]
[320355680,1711323031767,-345.59,0.0001647,2]
[320355681,1711323031777,-150.0,0.000165,2]
[320355682,1711323031786,-150.0,0.000166,2]
[320355683,1711323031795,-150.0,0.000166,2]
[320355684,1711323031805,-150.0,0.000167,2]
[320355685,1711323031814,-150.0,0.00016714,2]
[320355686,1711323031824,-526.42,0.0001673,2]
[320355687,1711323031836,-150.0,0.000168,2]
[320355688,1711323031846,-150.0,0.000168,2]
[320355689,1711323031856,-150.0,0.000168,2]
[320355690,1711323031865,-3327.92568913,0.00016884,2]
[320355691,1711323031875,-488.71,0.00016894,2]
[320355692,1711323031884,-42373.08095434,0.00016894,2]
[320355694,1711323031893,-150.0,0.000169,2]
[320355695,1711323031902,-150.0,0.00016971,2]
[320355697,1711323031911,-150.0,0.00017,2]
[320355699,1711323031920,-150.0,0.00017,2]
[320355700,1711323031930,-2000.0,0.00017,2]
[320355702,1711323031939,-150.0,0.000171,2]
[320355703,1711323031948,-150.0,0.000172,2]
[320355704,1711323031958,-150.0,0.000172,2]
[320355705,1711323031967,-150.0,0.00017229,2]
[320355706,1711323031978,-511.29,0.00017255,2]
[320355707,1711323031987,-150.0,0.000173,2]
[320355708,1711323031997,-170.22,0.00017363,2]
[320355709,1711323032007,-150.0,0.000174,2]
[320355711,1711323032016,-150.0,0.000174,2]
[320355712,1711323032025,-150.0,0.000174,2]
[320355714,1711323032035,-3179.0,0.00017444,2]
[320355715,1711323032045,-166.19,0.00017457,2]
[320355716,1711323032055,-150.0,0.00017486,2]
[320355717,1711323032064,-150.0,0.000175,2]
[320355718,1711323032074,-544.82797075,0.00017514,2]
[320355719,1711323032085,-150.0,0.000176,2]
[320355720,1711323032095,-150.0,0.000176,2]
[320355721,1711323032105,-150.0,0.000177,2]
[320355722,1711323032115,-150.0,0.00017743,2]
[320355723,1711323032125,-150.0,0.000178,2]
[320355724,1711323032134,-150.0,0.000178,2]
[320355725,1711323032144,-175.32,0.00017865,2]
[320355726,1711323032153,-1564.2884,0.00017897,2]
[320355727,1711323032162,-12136.55107303,0.000179,2]
[320355728,1711323032171,-150.0,0.000179,2]
[320355729,1711323032180,-157.18543556,0.000179,2]
[320355730,1711323032190,-376.44100055,0.000179,2]
[320355731,1711323032199,-1010.9050605,0.000179,2]
[320355732,1711323032209,-329.31565198,0.000179,2]
[320355733,1711323032218,-6633.4165075,0.000179,2]
[320355734,1711323032227,-211.99736682,0.000179,2]
[320355735,1711323032236,-645.16785583,0.000179,2]
[320355736,1711323032245,-220.86356576,0.000179,2]
[320355737,1711323032254,-297.12,0.00017987,3]
[320355738,1711323032265,-891.4,0.00017987,3]
[320355739,1711323032274,-298.51732397,0.00017995,2]
[320355740,1711323032284,-172.71182598,0.00017995,2]
[320355741,1711323032294,-1093.86670843,0.00017995,2]
[320355742,1711323032304,-399.09173424,0.00017995,2]
[320355743,1711323032312,-306.74073061,0.00017995,2]
[320355744,1711323032322,-248.34122305,0.00017996,2]
[320355745,1711323032333,-337.86639598,0.00017996,2]
[320355746,1711323032342,-572.04464527,0.00017996,2]
[320355747,1711323032351,-1141.48645998,0.00017996,2]
[320355748,1711323032361,-5139.04653816,0.00017997,2]
[320355749,1711323032410,-1482.936,0.00017997,2]
[320355750,1711323032423,-424.82698999,0.00017997,2]
[320355751,1711323032450,-337.53974074,0.00017997,2]
[320355752,1711323032462,-273.75757792,0.00017997,2]
[320355753,1711323032480,-111899.29821186,0.00017997,2]
[320355754,1711323032492,-377.3206045,0.00017997,2]
[320355755,1711323032504,-9268.5,0.00017997,2]
[320355756,1711323032655,-891.15199867,0.00017997,2]
[320355757,1711323032667,-777.70501514,0.00017997,2]
[320355758,1711323032679,-9141.96936392,0.00017997,2]
[320355759,1711323032692,-3468.22260004,0.00017997,2]
[320355780,1711323037721,-172.360608,0.0001799,2]
[320355781,1711323037730,-1082.12246982,0.00017997,2]
[320355782,1711323037896,-4547.21032107,0.00017997,2]
[320355783,1711323037908,-19599.21,0.00017997,2]
[320355784,1711323037920,-82.46038958,0.00017997,2]
[320355785,1711323037930,-5231.23869792,0.00017998,2]
[320355786,1711323037944,-16402.27879,0.00017998,2]
[320355787,1711323037958,-1566.54465891,0.00017998,2]
[320355788,1711323037967,-151.032508,0.00017998,2]
[320355790,1711323037977,-151.032508,0.00017998,2]
[320355792,1711323037986,-151.032508,0.00017998,2]
[320355794,1711323037996,-151.032508,0.00017998,2]
[320355796,1711323038006,-151.032508,0.00017998,2]
[320355798,1711323038016,-151.032508,0.00017998,2]
[320355800,1711323038025,-151.032508,0.00017998,3]
[320355802,1711323038034,-151.032508,0.00017998,3]
[320355805,1711323038053,-151.032508,0.00017998,3]
[320355807,1711323038064,-151.032508,0.00017998,3]
[320355808,1711323038073,-151.032508,0.00017998,3]
[320355809,1711323038084,-151.032508,0.00017998,3]
[320355810,1711323038094,-151.032508,0.00017998,3]
[320355811,1711323038106,-151.032508,0.00017998,3]
[320355812,1711323038115,-151.032508,0.00017998,3]
[320355813,1711323038124,-151.032508,0.00017998,3]
[320355814,1711323038134,-151.032508,0.00017998,3]
[320355815,1711323038144,-151.032508,0.00017998,3]
[320355816,1711323038154,-151.032508,0.00017998,3]
[320355818,1711323038165,-639.68383275,0.00017999,7]
[320355821,1711323038176,-1347.0,0.00017999,2]
[320355823,1711323038186,-468.62843117,0.00017999,2]
[320355825,1711323038196,-207.0,0.00018,2]
[320355826,1711323038207,-275.0,0.00018,2]
[320355827,1711323038218,-276.53324184,0.00018,2]
[320355828,1711323038228,-150.0,0.00018,2]
[320355829,1711323038238,-150.0,0.00018,2]
[320355830,1711323038248,-150.0,0.00018,2]
[320355831,1711323038258,-150.0,0.00018,2]
[320355832,1711323038268,-150.0,0.00018,2]
[320355833,1711323038279,-5376.68942983,0.00018,2]
[320355834,1711323038294,-27604.04831325,0.00018,2]
[320355835,1711323038307,-22743.24876,0.00018,2]
[320355836,1711323038319,-719.36076778,0.00018,2]
[320355837,1711323038331,-1301.20799578,0.00018,2]
[320355838,1711323038344,-290.08119832,0.00018,2]
[320355839,1711323038362,-2055.72219486,0.00018,2]
[320355840,1711323038376,-40249.12179473,0.00018,2]
[320355841,1711323038389,-1510811.06015929,0.00018,2]
[320355845,1711323039614,-962.68837989,0.00018,2]
[320355846,1711323039679,-302.0,0.00018,2]
[320355847,1711323039743,-3120.41209978,0.00018,2]
[320355848,1711323039808,-1870.53815802,0.00018,2]
[320355849,1711323039820,-9534.2611058,0.00018,2]
[320355850,1711323039837,-783.27247805,0.00018,2]
[320355851,1711323039882,-2702.0742056,0.00018,2]
[320355852,1711323039894,-401.9600296,0.00018,2]
[320355853,1711323039905,-565.06226831,0.00018,2]
[320355864,1711323042634,-316.220239,0.00018,2]
[320355865,1711323042646,-4198.30370411,0.00018,2]
[320355866,1711323042701,-1115.54818347,0.00018,2]
[320355867,1711323042713,-674.685,0.00018,2]
[320355868,1711323042724,-849.9,0.00018,2]
[320355869,1711323042735,-912.009726,0.00018,2]
[320355870,1711323042747,-530.63991,0.00018,2]
[320355871,1711323042758,-19182.86845385,0.00018,2]
[320355872,1711323042774,-4500.77841188,0.00018,2]
[320355873,1711323042787,-3381.06455693,0.00018,2]
[320355874,1711323042799,-1922.32917079,0.00018,2]
[320355875,1711323042813,-2222.7699996,0.00018,2]
[320355876,1711323042825,-542.18325069,0.00018,2]
[320355877,1711323044770,-458.87608,0.00018,2]
[320355878,1711323044836,-17701.0394351,0.00018,2]
[320355879,1711323044849,-2835.67172453,0.00018,2]
[320355880,1711323044861,-581.30791516,0.00018,2]
[320355881,1711323044886,-9683.49941316,0.00018,2]
[320355882,1711323044911,-544.10587771,0.00018,2]
[320355883,1711323044922,-8270.42298324,0.00018,2]
[320355884,1711323044934,-645.2,0.00018,2]
[320355885,1711323044945,-672961.14156766,0.00018,2]
[320355886,1711323044955,-222428.93168612,0.00018,2]
[320355887,1711323044964,-2000.0,0.00018,2]
[320355888,1711323044973,-3000.0,0.00018,2]
[320355890,1711323044982,-3610.9,0.00018,2]
[320355892,1711323044992,-12136.55107293,0.00018082,2]
[320355894,1711323045001,-385.039159,0.00018082,2]
[320355896,1711323045010,-1010.90506046,0.00018111,2]
[320355898,1711323045019,-1309.58877862,0.00018184,2]
[320355900,1711323045028,-12136.55107293,0.00018264,2]
[320355902,1711323045038,-1010.90506046,0.00018322,2]
[320355904,1711323045048,-12136.55107293,0.00018445,2]
[320355906,1711323045057,-2098.0,0.00018528,2]
[320355908,1711323045066,-1010.90506046,0.00018533,2]
[320355910,1711323045075,-154.94977712,0.00018571,2]
[320355912,1711323045085,-154.08390765,0.00018579,2]
[320355914,1711323045095,-168.3221185,0.00018588,2]
[320355916,1711323045104,-154.94977712,0.00018598,2]
[320355918,1711323045113,-800.0,0.00018603,2]
[320355920,1711323045123,-152.00641088,0.00018616,2]
[320355922,1711323045132,-154.08390765,0.00018622,2]
[320355924,1711323045141,-12136.55107293,0.00018627,2]
[320355926,1711323045150,-457.90031661,0.00018628,2]
[320355928,1711323045160,-154.08390765,0.00018665,2]
[320355930,1711323045170,-172.360608,0.0001867,2]
[320355932,1711323045179,-252756.82206618,0.0001868,2]
[320355934,1711323045189,-17213.10299546,0.0001868,2]
[320355936,1711323045199,-154.94977712,0.00018689,2]
[320355938,1711323045209,-1059.049,0.00018699,2]
[320355940,1711323045219,-387.581,0.00018699,2]
[320355942,1711323045229,-464.945,0.00018699,2]
[320355944,1711323045238,-5006.0,0.000187,2]
[320355946,1711323045248,-152.49935685,0.00018718,2]
[320355948,1711323045257,-154.94977712,0.00018742,2]
[320355950,1711323045266,-1010.90506046,0.00018743,2]
[320355952,1711323045275,-154.94977712,0.00018748,2]
[320355954,1711323045284,-168.32211851,0.0001876,2]
[320355956,1711323045293,-154.62110221,0.00018764,2]
[320355958,1711323045302,-154.94977712,0.00018767,2]
[320355960,1711323045311,-154.62110221,0.00018769,2]
[320355962,1711323045320,-6911.1388,0.0001878,2]
[320355964,1711323045329,-1000.0,0.0001878,2]
[320355966,1711323045339,-457.90031661,0.00018794,2]
[320355968,1711323045349,-253.47325599,0.00018801,2]
[320355970,1711323045358,-158.44120511,0.00018809,2]
[320355972,1711323045368,-12136.55107293,0.00018809,2]
[320355975,1711323045377,-152.68381907,0.00018812,2]
[320355978,1711323045386,-457.90031661,0.0001885,2]
[320355980,1711323045395,-156.39021322,0.00018855,2]
[320355982,1711323045405,-151.032507,0.00018878,3]
[320355984,1711323045414,-151.032507,0.00018878,3]
[320355986,1711323045423,-151.032507,0.00018878,2]
[320355988,1711323045433,-151.032507,0.00018878,2]
[320355991,1711323045442,-151.032507,0.00018878,2]
[320355994,1711323045451,-151.032507,0.00018878,3]
[320355996,1711323045461,-1725.74911882,0.0001888,3]
[320355998,1711323045470,-602973.48628242,0.0001888,2]
[320356004,1711323045518,-64000.0,0.0001888,2]
[320356034,1711323045768,-7681.9787125,0.0001888,2]
[320356036,1711323045780,-30303.59159434,0.0001888,2]
[320356047,1711323045876,-1209.74189245,0.0001888,2]
[320356049,1711323045888,-444505.16270878,0.0001888,2]
[320356073,1711323046103,-1134.13449414,0.0001888,2]
[320356075,1711323046115,-2732.36,0.0001888,2]
[320356077,1711323046126,-2006.3049819,0.0001888,2]
[320356081,1711323046152,-6756.75,0.0001888,2]
[320356083,1711323046164,-4895.47268514,0.0001888,2]
[320356087,1711323046185,-67635.34743982,0.0001888,2]
[320357285,1711324231734,-193.71088867,0.00015517,2]
[320357286,1711324231745,-201.16453705,0.00016893,2]
[320357287,1711324231793,-484.28691844,0.00016893,2]
[320357288,1711324231806,-250.14862721,0.00016893,2]
[320357289,1711324231815,-249.85137279,0.00016894,2]
[320357290,1711324231854,-1430.79032073,0.00016894,2]
[320357291,1711324231863,-156.97116306,0.00017012,2]
[320357292,1711324231873,-204.3052669,0.00017112,2]
[320357293,1711324231882,-849.04,0.0001714,2]
[320357294,1711324231892,-250.0,0.00017151,2]
[320357295,1711324231901,-609.03,0.00017172,2]
[320357296,1711324231911,-238.4,0.00017175,2]
[320357297,1711324231921,-286.22,0.00017183,2]
[320357298,1711324231931,-746.89,0.00017188,2]
[320357299,1711324231941,-200.0,0.00017191,2]
[320357300,1711324231950,-250.0,0.00017198,2]
[320357301,1711324231963,-170.22,0.00017209,2]
[320357302,1711324231973,-2563.6,0.00017218,2]
[320357303,1711324231982,-436.23,0.00017239,2]
[320357304,1711324231991,-150.99,0.00017239,2]
[320357305,1711324232000,-909.37509513,0.00017266,2]
[320357306,1711324232013,-434.39490487,0.00017266,2]
[320357307,1711324232022,-500.0,0.00017267,2]
[320357308,1711324232032,-390.97,0.00017394,2]
[320357309,1711324232042,-169.76,0.00017411,2]
[320357310,1711324232051,-300.0,0.00017428,2]
[320357311,1711324232061,-150.99,0.00017438,2]
[320357312,1711324232070,-164.46,0.00017459,2]